fUSD/lending_fUSD_20260517
["ID","MTS","AMOUNT","RATE_DAILY","PERIOD"]
[422502851,1779001846000,-1095.24427681,0.00036401,2]
[422502854,1779001846000,-300.0,0.00036401,2]
[422502856,1779001846000,-496.12427771,0.00036401,2]
[422502862,1779001846000,-300.0,0.00036401,2]
[422502881,1779001846000,-300.0,0.00036401,2]
[422502882,1779001846000,-317.91000476,0.00036401,2]
[422502884,1779001846000,-300.0,0.00036401,2]
[422502930,1779001846000,-6055.0,0.00036681,2]
[422502932,1779001846000,-152.06,0.0003669,30]
[422502931,1779001846000,-151.32304821,0.0003669,2]
[422502943,1779001846000,-373.31533547,0.00037115,2]
[422502945,1779001846000,-160.0,0.000372,36]
[422502933,1779001846000,-311.09611289,0.00036739,2]
[422502934,1779001846000,-1244.38445156,0.00036739,2]
[422502935,1779001846000,-503.0,0.00036807,12]
[422502939,1779001846000,-2052.2576,0.00037083,2]
[422502938,1779001846000,-215.0785988,0.00037,7]
[422502937,1779001846000,-230.0,0.00037,2]
[422502936,1779001846000,-2052.2576,0.00036824,2]
[422502946,1779001846000,-186.65766773,0.0003727,30]
[422502947,1779001846000,-152.06,0.000373,60]
[422502948,1779001846000,-150.0,0.0003732,2]
[422502951,1779001846000,-150.0,0.0003732,2]
[422502949,1779001846000,-150.0,0.0003732,2]
[422502950,1779001846000,-150.0,0.0003732,2]
[422502952,1779001846000,-150.0,0.0003732,2]
[422502953,1779001846000,-1354.0,0.0003732,2]
[422502954,1779001846000,-927.0,0.0003732,2]
[422502955,1779001846000,-150.0,0.0003732,2]
[422502956,1779001846000,-1270.0,0.0003732,2]
[422502957,1779001846000,-162.39,0.00037324,120]
[422502894,1779001846000,-344.12979214,0.00036401,2]
[422502925,1779001846000,-152.0,0.00036499,5]
[422502927,1779001846000,-9429.0982319,0.00036611,2]
[422502940,1779001846000,-17862.27190487,0.000371,2]
[422502926,1779001846000,-2052.2576,0.00036564,2]
[422502898,1779001846000,-1147.71030809,0.00036438,2]
[422502928,1779001846000,-1223.0,0.00036681,2]
[422502892,1779001846000,-1913.25849317,0.00036401,2]
[422502888,1779001846000,-949.41386656,0.00036401,2]
[422502904,1779001846000,-529.83738724,0.00036438,2]
[422502902,1779001846000,-864.84573435,0.00036438,2]
[422502906,1779001846000,-300.0,0.00036438,2]
[422502905,1779001846000,-1791.55036629,0.00036438,2]
[422502914,1779001846000,-300.0,0.00036438,2]
[422502917,1779001846000,-300.0,0.00036438,2]
[422502912,1779001846000,-577.47815809,0.00036438,2]
[422502909,1779001846000,-300.0,0.00036438,2]
[422502908,1779001846000,-311.04198967,0.00036438,2]
[422502915,1779001846000,-300.0,0.00036438,2]
[422502921,1779001846000,-300.0,0.00036438,2]
[422502929,1779001846000,-417.0,0.00036681,2]
[422502907,1779001846000,-300.0,0.00036438,2]
[422502922,1779001846000,-300.0,0.00036438,2]
[422502923,1779001846000,-1095.24427681,0.00036438,2]
[422502920,1779001846000,-300.0,0.00036438,2]
[422502919,1779001846000,-309.96996065,0.00036438,2]
[422502924,1779001846000,-300.0,0.00036438,2]
[422502911,1779001846000,-300.0,0.00036438,2]
[422502913,1779001846000,-452.10208933,0.00036438,2]
[422502910,1779001846000,-464.05309097,0.00036438,2]
[422502916,1779001846000,-300.0,0.00036438,2]
[422502918,1779001846000,-484.30212364,0.00036438,2]
[422502994,1779001847000,-1000.0,0.00038099,33]
[422502997,1779001847000,-151.0,0.00038125,30]
[422503008,1779001847000,-150.0,0.00038301,2]
[422502998,1779001847000,-160.0,0.000382,40]
[422502992,1779001847000,-933.28833867,0.00038061,60]
[422502987,1779001847000,-692.41765724,0.00038,120]
[422502993,1779001847000,-503.0,0.00038096,14]
[422502990,1779001847000,-150.0,0.00038,120]
[422502989,1779001847000,-1560.44371713,0.00038,2]
[422502988,1779001847000,-238667.30348403,0.00038,2]
[422503000,1779001847000,-1312.0287661,0.000382,30]
[422502991,1779001847000,-168.93,0.00038028,5]
[422503007,1779001847000,-150.0,0.00038301,2]
[422503016,1779001847000,-200.0,0.00038365,2]
[422503002,1779001847000,-186.65766773,0.00038227,30]
[422502999,1779001847000,-1312.02876612,0.000382,30]
[422503006,1779001847000,-150.0,0.00038301,2]
[422503001,1779001847000,-1312.0287661,0.000382,30]
[422503004,1779001847000,-150.0,0.0003825,120]
[422503005,1779001847000,-9429.0982319,0.000383,2]
[422503009,1779001847000,-150.0,0.00038301,2]
[422503013,1779001847000,-2229.5,0.00038329,120]
[422503010,1779001847000,-282.0,0.00038301,2]
[422503017,1779001847000,-200.0,0.00038365,2]
[422503021,1779001847000,-200.0,0.00038365,2]
[422502984,1779001847000,-228.0,0.00038,30]
[422503003,1779001847000,-500.0,0.00038243,120]
[422502996,1779001847000,-2052.2576,0.0003812,2]
[422502960,1779001847000,-211.87629387,0.00037443,60]
[422502995,1779001847000,-9607.43100594,0.000381,33]
[422502959,1779001847000,-1000.0,0.00037441,99]
[422502958,1779001847000,-2052.2576,0.00037342,2]
[422502961,1779001847000,-503.0,0.00037452,13]
[422502963,1779001847000,-4411.28004785,0.0003759,2]
[422502964,1779001847000,-976.0,0.000376,30]
[422502965,1779001847000,-2052.2576,0.00037602,2]
[422502967,1779001847000,-1000.0,0.0003768,9]
[422502966,1779001847000,-386.98,0.00037649,30]
[422502969,1779001847000,-503.0,0.0003771,13]
[422502971,1779001847000,-1000.0,0.00037798,94]
[422502968,1779001847000,-150.0,0.00037694,2]
[422502970,1779001847000,-1000.0,0.00037775,46]
[422503014,1779001847000,-200.0,0.00038365,2]
[422502962,1779001847000,-279.9865016,0.00037551,30]
[422502974,1779001847000,-200.0,0.000378,10]
[422502973,1779001847000,-181.42,0.000378,2]
[422502975,1779001847000,-1000.0,0.00037814,13]
[422502978,1779001847000,-519.10930074,0.00037888,2]
[422502979,1779001847000,-323.32,0.000379,15]
[422502977,1779001847000,-205.75752157,0.0003788,2]
[422502976,1779001847000,-2052.2576,0.00037861,2]
[422502981,1779001847000,-1000.0,0.00037908,86]
[422502982,1779001847000,-152.06,0.0003791,86]
[422502983,1779001847000,-1000.0,0.00037998,37]
[422502980,1779001847000,-300.0,0.000379,10]
[422502985,1779001847000,-151.0,0.00038,120]
[422502972,1779001847000,-1000.0,0.00037799,38]
[422503012,1779001847000,-2229.5,0.00038329,120]
[422502986,1779001847000,-151.0,0.00038,120]
[422503011,1779001847000,-2233.0,0.00038329,120]
[422503050,1779001847000,-336.0,0.00038365,2]
[422503051,1779001847000,-200.0,0.00038365,2]
[422503049,1779001847000,-200.0,0.00038365,2]
[422503055,1779001847000,-200.0,0.00038365,2]
[422503053,1779001847000,-200.0,0.00038365,2]
[422503054,1779001847000,-200.0,0.00038365,2]
[422503056,1779001847000,-200.0,0.00038365,2]
[422503057,1779001847000,-200.0,0.00038365,2]
[422503059,1779001847000,-200.0,0.00038365,2]
[422503060,1779001847000,-200.0,0.00038365,2]
[422503061,1779001847000,-200.0,0.00038365,2]
[422503068,1779001847000,-157.0,0.00038365,2]
[422503058,1779001847000,-200.0,0.00038365,2]
[422503062,1779001847000,-200.0,0.00038365,2]
[422503064,1779001847000,-200.0,0.00038365,2]
[422503065,1779001847000,-200.0,0.00038365,2]
[422503067,1779001847000,-200.0,0.00038365,2]
[422503063,1779001847000,-200.0,0.00038365,2]
[422503066,1779001847000,-200.0,0.00038365,2]
[422503070,1779001847000,-300.0,0.00038369,2]
[422503069,1779001847000,-300.0,0.00038369,2]
[422503071,1779001847000,-300.0,0.00038369,2]
[422503074,1779001847000,-300.0,0.00038369,2]
[422503073,1779001847000,-300.0,0.00038369,2]
[422503072,1779001847000,-300.0,0.00038369,2]
[422503076,1779001847000,-4001.4436199,0.00038369,120]
[422503075,1779001847000,-309.34,0.00038369,2]
[422503052,1779001847000,-200.0,0.00038365,2]
[422503048,1779001847000,-200.0,0.00038365,2]
[422503020,1779001847000,-200.0,0.00038365,2]
[422503046,1779001847000,-200.0,0.00038365,2]
[422503019,1779001847000,-200.0,0.00038365,2]
[422503018,1779001847000,-200.0,0.00038365,2]
[422503015,1779001847000,-200.0,0.00038365,2]
[422503025,1779001847000,-200.0,0.00038365,2]
[422503027,1779001847000,-200.0,0.00038365,2]
[422503028,1779001847000,-200.0,0.00038365,2]
[422503024,1779001847000,-200.0,0.00038365,2]
[422503030,1779001847000,-200.0,0.00038365,2]
[422503026,1779001847000,-200.0,0.00038365,2]
[422503029,1779001847000,-200.0,0.00038365,2]
[422503022,1779001847000,-200.0,0.00038365,2]
[422503032,1779001847000,-200.0,0.00038365,2]
[422503031,1779001847000,-200.0,0.00038365,2]
[422503047,1779001847000,-200.0,0.00038365,2]
[422503033,1779001847000,-200.0,0.00038365,2]
[422503023,1779001847000,-200.0,0.00038365,2]
[422503045,1779001847000,-200.0,0.00038365,2]
[422503042,1779001847000,-200.0,0.00038365,2]
[422503043,1779001847000,-200.0,0.00038365,2]
[422503041,1779001847000,-200.0,0.00038365,2]
[422503038,1779001847000,-200.0,0.00038365,2]
[422503039,1779001847000,-200.0,0.00038365,2]
[422503036,1779001847000,-200.0,0.00038365,2]
[422503035,1779001847000,-200.0,0.00038365,2]
[422503044,1779001847000,-200.0,0.00038365,2]
[422503034,1779001847000,-200.0,0.00038365,2]
[422503037,1779001847000,-200.0,0.00038365,2]
[422503040,1779001847000,-200.0,0.00038365,2]
[422503115,1779001848000,-2000.0,0.0003895,2]
[422503119,1779001848000,-31316.95757879,0.00039,2]
[422503116,1779001848000,-10000.0,0.0003895,2]
[422503114,1779001848000,-1582.847602,0.00038926,2]
[422503113,1779001848000,-780755.885325,0.00038926,2]
[422503117,1779001848000,-1000.0,0.00038999,44]
[422503111,1779001848000,-151.0,0.00038926,30]
[422503112,1779001848000,-3181.588162,0.00038926,2]
[422503110,1779001848000,-151.0,0.00038926,30]
[422503108,1779001848000,-1640.93489132,0.000389,7]
[422503129,1779001848000,-400.0,0.00039183,2]
[422503109,1779001848000,-151.0,0.00038923,14]
[422503121,1779001848000,-150.0,0.00039,120]
[422503126,1779001848000,-350.0,0.00039134,2]
[422503120,1779001848000,-358.44,0.00039,30]
[422503124,1779001848000,-158.6745342,0.00039119,2]
[422503122,1779001848000,-158.6745342,0.00039019,2]
[422503127,1779001848000,-152.06,0.0003914,116]
[422503128,1779001848000,-1000.0,0.00039183,2]
[422503125,1779001848000,-2339.1459,0.00039133,30]
[422503123,1779001848000,-151.0,0.000391,120]
[422503131,1779001848000,-316.4596,0.000392,45]
[422503142,1779001848000,-150.0,0.000393,2]
[422503135,1779001848000,-211.87629387,0.00039269,60]
[422503134,1779001848000,-150.0,0.0003925,120]
[422503132,1779001848000,-158.6745342,0.00039219,2]
[422503107,1779001848000,-200.0,0.000389,16]
[422503118,1779001848000,-228.0,0.00039,30]
[422503106,1779001848000,-151.0,0.000389,120]
[422503091,1779001848000,-200.0,0.00038795,2]
[422503105,1779001848000,-877.4772,0.00038898,30]
[422503080,1779001848000,-500.0,0.00038453,120]
[422503077,1779001848000,-234130.64348367,0.00038391,2]
[422503079,1779001848000,-500.0,0.00038453,120]
[422503078,1779001848000,-151.0,0.000384,120]
[422503081,1779001848000,-884.3996865,0.00038453,120]
[422503083,1779001848000,-150.0,0.000385,120]
[422503084,1779001848000,-1000.0,0.00038528,105]
[422503085,1779001848000,-152.06,0.0003853,105]
[422503092,1779001848000,-200.0,0.00038795,2]
[422503082,1779001848000,-82523.84034153,0.000385,2]
[422503093,1779001848000,-200.0,0.00038795,2]
[422503089,1779001848000,-200.0,0.00038795,2]
[422503087,1779001848000,-503.0,0.00038741,14]
[422503088,1779001848000,-150.0,0.0003875,120]
[422503086,1779001848000,-12423.25976802,0.000386,120]
[422503133,1779001848000,-2313.0,0.00039236,11]
[422503090,1779001848000,-200.0,0.00038795,2]
[422503094,1779001848000,-200.0,0.00038795,2]
[422503095,1779001848000,-200.0,0.00038795,2]
[422503098,1779001848000,-976.0,0.000388,30]
[422503103,1779001848000,-468742.32155187,0.0003888,60]
[422503100,1779001848000,-1000.0,0.000388,2]
[422503097,1779001848000,-1000.0,0.00038799,43]
[422503102,1779001848000,-12692.223441,0.00038834,2]
[422503101,1779001848000,-314.0,0.000388,2]
[422503104,1779001848000,-519.10930074,0.00038888,2]
[422503096,1779001848000,-250.0,0.00038795,2]
[422503099,1779001848000,-308.0,0.000388,2]
[422503136,1779001848000,-163.0,0.00039293,11]
[422503130,1779001848000,-186.65766773,0.00039183,30]
[422503139,1779001848000,-150.0,0.000393,2]
[422503168,1779001848000,-1007.91425451,0.000394,2]
[422503172,1779001848000,-2819.38102309,0.00039478,2]
[422503173,1779001848000,-2819.38102309,0.00039486,2]
[422503169,1779001848000,-158.6745342,0.00039419,2]
[422503171,1779001848000,-1586.0,0.00039464,11]
[422503175,1779001848000,-158.41,0.000395,30]
[422503174,1779001848000,-434278.28631662,0.0003949,2]
[422503170,1779001848000,-269.35,0.00039423,120]
[422503179,1779001848000,-500.0,0.00039581,3]
[422503180,1779001848000,-200.0,0.00039581,3]
[422503181,1779001848000,-1000.0,0.00039599,115]
[422503182,1779001848000,-313.72,0.0003961,120]
[422503191,1779001848000,-1000.0,0.00039699,116]
[422503166,1779001848000,-7503.17090512,0.000394,2]
[422503186,1779001848000,-6784.29,0.00039648,2]
[422503190,1779001848000,-6055.0,0.00039681,2]
[422503189,1779001848000,-417.0,0.00039681,2]
[422503183,1779001848000,-387.09,0.00039621,30]
[422503185,1779001848000,-350.0,0.00039644,2]
[422503184,1779001848000,-2819.38102309,0.00039636,2]
[422503193,1779001848000,-300.0,0.00039726,120]
[422503192,1779001848000,-2819.38102309,0.00039706,2]
[422503195,1779001848000,-5634.40711717,0.00039746,2]
[422503198,1779001848000,-152.06,0.0003975,120]
[422503196,1779001848000,-150.0,0.00039749,120]
[422503197,1779001848000,-150.0,0.00039749,120]
[422503194,1779001848000,-152.0,0.00039727,7]
[422503137,1779001848000,-150.0,0.000393,2]
[422503187,1779001848000,-269.36,0.00039653,120]
[422503178,1779001848000,-500.0,0.00039581,3]
[422503188,1779001848000,-1223.0,0.00039681,2]
[422503176,1779001848000,-150.0,0.000395,120]
[422503177,1779001848000,-150.0,0.00039579,2]
[422503141,1779001848000,-209.63176895,0.000393,2]
[422503138,1779001848000,-150.0,0.000393,2]
[422503144,1779001848000,-150.0,0.000393,2]
[422503143,1779001848000,-150.0,0.000393,2]
[422503154,1779001848000,-2557.44843548,0.00039325,11]
[422503148,1779001848000,-1572.578401,0.000393,31]
[422503146,1779001848000,-151.0,0.000393,120]
[422503145,1779001848000,-150.0,0.000393,2]
[422503147,1779001848000,-334.5992,0.000393,120]
[422503150,1779001848000,-2557.44843549,0.00039325,11]
[422503152,1779001848000,-2557.44843548,0.00039325,11]
[422503151,1779001848000,-2557.44843548,0.00039325,11]
[422503149,1779001848000,-158.6745342,0.00039319,2]
[422503140,1779001848000,-150.0,0.000393,2]
[422503167,1779001848000,-338.33324232,0.000394,2]
[422503153,1779001848000,-2557.44843548,0.00039325,11]
[422503164,1779001848000,-177.62979401,0.000394,8]
[422503161,1779001848000,-150.0,0.00039367,120]
[422503163,1779001848000,-152.0,0.00039399,7]
[422503162,1779001848000,-503.0,0.00039386,15]
[422503158,1779001848000,-500.0,0.00039356,60]
[422503160,1779001848000,-150.0,0.00039367,120]
[422503157,1779001848000,-500.0,0.00039356,60]
[422503155,1779001848000,-2557.44843548,0.00039325,11]
[422503165,1779001848000,-957.04110618,0.000394,2]
[422503156,1779001848000,-2557.44843548,0.00039325,11]
[422503159,1779001848000,-700.0,0.00039356,60]
[422503238,1779001849000,-800.0,0.00039985,15]
[422503239,1779001849000,-800.0,0.00039985,15]
[422503240,1779001849000,-1047.49797076,0.00039999,31]
[422503243,1779001849000,-1000.0,0.00039999,41]
[422503236,1779001849000,-800.0,0.00039985,15]
[422503259,1779001849000,-500.0,0.0004,7]
[422503233,1779001849000,-800.0,0.00039985,15]
[422503237,1779001849000,-800.0,0.00039985,15]
[422503234,1779001849000,-800.0,0.00039985,15]
[422503241,1779001849000,-3193.51989109,0.00039999,2]
[422503253,1779001849000,-500.0,0.0004,7]
[422503231,1779001849000,-154.54813898,0.00039985,30]
[422503235,1779001849000,-800.0,0.00039985,15]
[422503242,1779001849000,-1000.0,0.00039999,26]
[422503250,1779001849000,-151.2,0.0004,120]
[422503244,1779001849000,-5909.119244,0.0004,2]
[422503247,1779001849000,-692.58,0.0004,120]
[422503248,1779001849000,-324.3,0.0004,120]
[422503249,1779001849000,-383.53,0.0004,120]
[422503246,1779001849000,-329.21,0.0004,120]
[422503245,1779001849000,-204.7,0.0004,120]
[422503252,1779001849000,-500.0,0.0004,7]
[422503251,1779001849000,-500.0,0.0004,7]
[422503256,1779001849000,-500.0,0.0004,7]
[422503255,1779001849000,-500.0,0.0004,7]
[422503257,1779001849000,-500.0,0.0004,7]
[422503258,1779001849000,-500.0,0.0004,7]
[422503232,1779001849000,-800.0,0.00039985,15]
[422503254,1779001849000,-500.0,0.0004,7]
[422503230,1779001849000,-900.0,0.00039983,15]
[422503203,1779001849000,-1000.0,0.00039799,19]
[422503226,1779001849000,-900.0,0.00039983,15]
[422503261,1779001849000,-500.0,0.0004,7]
[422503199,1779001849000,-208.85114646,0.0003975,120]
[422503200,1779001849000,-150.0,0.00039793,2]
[422503201,1779001849000,-1000.0,0.00039799,48]
[422503202,1779001849000,-1000.0,0.00039799,118]
[422503207,1779001849000,-200.0,0.000398,19]
[422503204,1779001849000,-151.0,0.000398,120]
[422503205,1779001849000,-194.168,0.000398,41]
[422503215,1779001849000,-346.07286716,0.00039888,7]
[422503216,1779001849000,-200.0,0.000399,16]
[422503209,1779001849000,-2819.38102309,0.00039853,2]
[422503214,1779001849000,-2835.74767667,0.0003988,120]
[422503211,1779001849000,-359.71931752,0.00039866,14]
[422503227,1779001849000,-900.0,0.00039983,15]
[422503213,1779001849000,-96182.00560693,0.0003987,14]
[422503208,1779001849000,-622.19222578,0.00039826,120]
[422503212,1779001849000,-403.2076737,0.0003987,2]
[422503218,1779001849000,-163.0,0.00039942,11]
[422503220,1779001849000,-1000.0,0.0003995,16]
[422503229,1779001849000,-900.0,0.00039983,15]
[422503228,1779001849000,-900.0,0.00039983,15]
[422503219,1779001849000,-2313.0,0.00039942,11]
[422503217,1779001849000,-1900.0703067,0.000399,20]
[422503224,1779001849000,-900.0,0.00039983,15]
[422503221,1779001849000,-75436.66826489,0.0003997,2]
[422503222,1779001849000,-279.9865016,0.00039978,120]
[422503223,1779001849000,-900.0,0.00039983,15]
[422503225,1779001849000,-900.0,0.00039983,15]
[422503210,1779001849000,-5800.0,0.00039855,14]
[422503266,1779001849000,-500.0,0.0004,7]
[422503206,1779001849000,-1500.0,0.000398,31]
[422503263,1779001849000,-500.0,0.0004,7]
[422503306,1779001849000,-2500.0,0.000401,120]
[422503302,1779001849000,-2000.0,0.0004,120]
[422503298,1779001849000,-1000.0,0.0004,120]
[422503297,1779001849000,-610.5082972,0.0004,2]
[422503301,1779001849000,-284.67,0.0004,120]
[422503307,1779001849000,-2819.38102309,0.00040106,2]
[422503300,1779001849000,-648.81820205,0.0004,30]
[422503299,1779001849000,-10000.0,0.0004,90]
[422503305,1779001849000,-503.0,0.0004003,16]
[422503303,1779001849000,-160.0,0.0004,120]
[422503304,1779001849000,-168.068147,0.0004,20]
[422503308,1779001849000,-165.32731817,0.00040117,2]
[422503320,1779001849000,-259.10906137,0.00040225,120]
[422503319,1779001849000,-500.0,0.000402,120]
[422503317,1779001849000,-151.0,0.000402,120]
[422503318,1779001849000,-151.0,0.000402,120]
[422503314,1779001849000,-700.0,0.00040178,60]
[422503310,1779001849000,-186.65766773,0.0004014,30]
[422503312,1779001849000,-200.0,0.00040164,20]
[422503309,1779001849000,-293.86404168,0.00040124,2]
[422503315,1779001849000,-954.58977359,0.00040183,120]
[422503311,1779001849000,-1405.31,0.00040155,2]
[422503313,1779001849000,-500.0,0.00040178,60]
[422503264,1779001849000,-500.0,0.0004,7]
[422503322,1779001849000,-400.0,0.0004027,3]
[422503325,1779001849000,-1000.0,0.00040272,108]
[422503321,1779001849000,-1000.0,0.00040253,90]
[422503323,1779001849000,-400.0,0.0004027,3]
[422503324,1779001849000,-400.0,0.0004027,3]
[422503295,1779001849000,-515.78913571,0.0004,2]
[422503296,1779001849000,-30152.82279616,0.0004,2]
[422503316,1779001849000,-1000.0,0.00040199,50]
[422503287,1779001849000,-14292.6433,0.0004,120]
[422503291,1779001849000,-164.05332048,0.0004,2]
[422503260,1779001849000,-500.0,0.0004,7]
[422503262,1779001849000,-500.0,0.0004,7]
[422503268,1779001849000,-1074.43369725,0.0004,2]
[422503280,1779001849000,-4617.38281278,0.0004,50]
[422503273,1779001849000,-10107.72613821,0.0004,4]
[422503272,1779001849000,-2101.91929713,0.0004,2]
[422503278,1779001849000,-1586.44848816,0.0004,2]
[422503279,1779001849000,-4177.95347227,0.0004,2]
[422503267,1779001849000,-318.0,0.0004,14]
[422503270,1779001849000,-174.26601955,0.0004,120]
[422503269,1779001849000,-976.0,0.0004,30]
[422503271,1779001849000,-528.08749188,0.0004,120]
[422503275,1779001849000,-1059.28080889,0.0004,20]
[422503265,1779001849000,-451.51,0.0004,7]
[422503276,1779001849000,-24145.81524532,0.0004,2]
[422503288,1779001849000,-37386.04475502,0.0004,10]
[422503277,1779001849000,-396.52858528,0.0004,2]
[422503284,1779001849000,-27720.14254263,0.0004,120]
[422503293,1779001849000,-4000.0,0.0004,14]
[422503286,1779001849000,-39715.8999519,0.0004,10]
[422503289,1779001849000,-319.70992136,0.0004,2]
[422503285,1779001849000,-2645.97262085,0.0004,90]
[422503283,1779001849000,-1708.72228897,0.0004,2]
[422503274,1779001849000,-1013.53644378,0.0004,7]
[422503281,1779001849000,-41331.70734632,0.0004,10]
[422503282,1779001849000,-584.20453031,0.0004,5]
[422503292,1779001849000,-10866.70974655,0.0004,2]
[422503290,1779001849000,-3000.0,0.0004,7]
[422503294,1779001849000,-2175.0,0.0004,20]
[422503360,1779001850000,-150.0,0.0004032,2]
[422503352,1779001850000,-376.48,0.0004029,60]
[422503354,1779001850000,-167.52,0.0004029,60]
[422503353,1779001850000,-2320.54,0.0004029,60]
[422503359,1779001850000,-150.0,0.0004032,2]
[422503362,1779001850000,-927.0,0.0004032,2]
[422503361,1779001850000,-1354.0,0.0004032,2]
[422503367,1779001850000,-150.0,0.00040325,2]
[422503356,1779001850000,-1000.0,0.00040299,29]
[422503366,1779001850000,-151.0,0.00040325,30]
[422503355,1779001850000,-1010.88,0.0004029,60]
[422503364,1779001850000,-1270.0,0.0004032,2]
[422503370,1779001850000,-26797.0,0.00040325,2]
[422503369,1779001850000,-465.59751742,0.00040325,120]
[422503363,1779001850000,-150.0,0.0004032,2]
[422503368,1779001850000,-159.0,0.00040325,120]
[422503371,1779001850000,-352.63685002,0.00040325,2]
[422503372,1779001850000,-1000.0,0.00040343,90]
[422503381,1779001850000,-248.0,0.00040388,120]
[422503374,1779001850000,-152.06,0.0004036,120]
[422503373,1779001850000,-1000.0,0.00040356,90]
[422503375,1779001850000,-1000.0,0.00040367,6]
[422503349,1779001850000,-150.0,0.00040274,2]
[422503377,1779001850000,-2819.38102309,0.00040379,2]
[422503365,1779001850000,-151.0,0.00040322,14]
[422503348,1779001850000,-551.97526556,0.00040274,2]
[422503339,1779001850000,-150.0,0.00040274,2]
[422503351,1779001850000,-20359.9147567,0.00040281,15]
[422503380,1779001850000,-152.0,0.00040388,120]
[422503332,1779001850000,-500.0,0.00040274,2]
[422503333,1779001850000,-500.0,0.00040274,2]
[422503328,1779001850000,-150.0,0.00040274,2]
[422503326,1779001850000,-150.0,0.00040274,2]
[422503327,1779001850000,-241.21762394,0.00040274,2]
[422503331,1779001850000,-500.0,0.00040274,2]
[422503329,1779001850000,-150.0,0.00040274,2]
[422503330,1779001850000,-150.0,0.00040274,2]
[422503334,1779001850000,-150.0,0.00040274,2]
[422503335,1779001850000,-150.0,0.00040274,2]
[422503357,1779001850000,-2158.06109377,0.000403,120]
[422503341,1779001850000,-150.0,0.00040274,2]
[422503336,1779001850000,-150.0,0.00040274,2]
[422503337,1779001850000,-243.06675581,0.00040274,2]
[422503340,1779001850000,-299.93318737,0.00040274,2]
[422503342,1779001850000,-150.0,0.00040274,2]
[422503344,1779001850000,-500.0,0.00040274,2]
[422503343,1779001850000,-250.0,0.00040274,2]
[422503345,1779001850000,-500.0,0.00040274,2]
[422503346,1779001850000,-500.0,0.00040274,2]
[422503350,1779001850000,-167.0,0.00040274,2]
[422503347,1779001850000,-150.0,0.00040274,2]
[422503358,1779001850000,-150.0,0.0004032,2]
[422503338,1779001850000,-150.0,0.00040274,2]
[422503378,1779001850000,-164.0,0.00040388,120]
[422503428,1779001850000,-166.56,0.00040414,114]
[422503379,1779001850000,-161.0,0.00040388,120]
[422503409,1779001850000,-408.97,0.00040412,120]
[422503412,1779001850000,-408.97,0.00040412,120]
[422503411,1779001850000,-408.97,0.00040412,120]
[422503417,1779001850000,-408.97,0.00040412,120]
[422503416,1779001850000,-408.97,0.00040412,120]
[422503410,1779001850000,-408.97,0.00040412,120]
[422503414,1779001850000,-408.97,0.00040412,120]
[422503415,1779001850000,-408.97,0.00040412,120]
[422503413,1779001850000,-408.97,0.00040412,120]
[422503419,1779001850000,-408.97,0.00040412,120]
[422503422,1779001850000,-408.97,0.00040412,120]
[422503408,1779001850000,-408.95,0.00040412,120]
[422503423,1779001850000,-408.97,0.00040412,120]